fUSD/lending_fUSD_20251113
["ID","MTS","AMOUNT","RATE_DAILY","PERIOD"]
[393866307,1763049041430,-2842.89378804,0.00019356,2]
[393866309,1763049041439,-2310.46699,0.0001941,2]
[393866311,1763049041448,-1327.46178706,0.00019416,2]
[393866313,1763049041458,-640.0,0.00019452,2]
[393866315,1763049041468,-2310.467,0.0001947,2]
[393866317,1763049041477,-1300.13979988,0.00019516,2]
[393866319,1763049041486,-2310.467,0.0001954,2]
[393866320,1763049041496,-247.72895877,0.00019573,2]
[393866321,1763049041505,-166.66,0.00019582,2]
[393866323,1763049041515,-2310.46699,0.000196,2]
[393866325,1763049041524,-1011.52144643,0.00019616,2]
[393866327,1763049041533,-894.07329233,0.00019616,2]
[393866329,1763049041546,-166.66,0.00019642,2]
[393866331,1763049041555,-14760.51240774,0.00019785,2]
[393866334,1763049041568,-400.0,0.00019863,2]
[393866336,1763049041578,-6316.3452157,0.00019938,2]
[393866337,1763049041587,-1027.51540983,0.0002,2]
[393866340,1763049041597,-8300.0,0.0002,4]
[393866342,1763049041607,-2000.0,0.0002,2]
[393866344,1763049041617,-1202.0,0.00020042,2]
[393866346,1763049041628,-166.66,0.00020056,2]
[393866348,1763049041638,-2842.89378804,0.00020134,2]
[393866350,1763049041649,-166.66,0.00020153,2]
[393866351,1763049041659,-205.2,0.00020167,2]
[393866352,1763049041669,-504.3,0.00020187,2]
[393866353,1763049041679,-3594.8932268,0.0002031,2]
[393866354,1763049041688,-151.0,0.00020331,7]
[393866355,1763049041700,-166.66,0.00020469,2]
[393866356,1763049041710,-151.0,0.00020548,7]
[393866357,1763049041719,-151.0,0.00020548,7]
[393866358,1763049041729,-151.0,0.00020548,7]
[393866359,1763049041738,-151.0,0.00020548,7]
[393866360,1763049041747,-600.0,0.00020548,2]
[393866361,1763049041758,-155.775543,0.00020548,7]
[393866362,1763049041767,-3271.273078,0.00020548,7]
[393866363,1763049041777,-3271.273078,0.00020548,7]
[393866364,1763049041789,-151.0,0.00020548,7]
[393866365,1763049041798,-3271.273078,0.00020548,7]
[393866366,1763049041807,-3271.273078,0.00020548,7]
[393866367,1763049041817,-151.0,0.00020548,7]
[393866368,1763049041826,-561.0,0.00020815,2]
[393866369,1763049041836,-587.0,0.00020817,2]
[393866370,1763049041846,-802.1291014,0.00020828,2]
[393866371,1763049041856,-2351.0,0.00020828,2]
[393866372,1763049041865,-166.66,0.00020883,2]
[393866373,1763049041875,-2842.89378804,0.00020912,2]
[393866374,1763049041885,-560.706949,0.00020976,7]
[393866375,1763049041894,-560.706949,0.00020976,7]
[393866376,1763049041904,-6236.1835199,0.00020977,2]
[393866377,1763049041913,-6353.55687192,0.00021,2]
[393866378,1763049041923,-1182.99820202,0.00021,2]
[393866379,1763049041932,-195.27056415,0.00021,2]
[393866380,1763049041942,-151.0,0.00021,7]
[393866381,1763049041954,-156.042706,0.00021,7]
[393866382,1763049041964,-151.0,0.00021,7]
[393866383,1763049041974,-151.0,0.00021,7]
[393866384,1763049042181,-350.0,0.00021,2]
[393866385,1763049042190,-695.16797179,0.00021066,2]
[393866386,1763049042199,-76805.6304877,0.00021216,2]
[393866387,1763049042209,-26727.2730455,0.00021216,2]
[393866388,1763049042218,-4472.9224785,0.00021216,2]
[393866389,1763049042228,-23477.6936278,0.00021216,2]
[393866390,1763049042237,-151.0,0.00021216,7]
[393866391,1763049042246,-800.0,0.00021233,2]
[393866392,1763049042255,-150.0,0.00021273,2]
[393866393,1763049042264,-150.0,0.00021273,2]
[393866394,1763049042276,-166.66,0.00021296,2]
[393866395,1763049042286,-1000.0,0.00021337,2]
[393866396,1763049042297,-6321.47,0.0002137,2]
[393866397,1763049042306,-300.0,0.00021499,2]
[393866398,1763049042315,-256.42545363,0.00021499,2]
[393866399,1763049042324,-20519.68525582,0.000215,2]
[393866400,1763049042333,-220.20831545,0.000215,2]
[393866401,1763049042342,-2842.89378804,0.0002169,2]
[393866402,1763049042352,-2410.81657624,0.00021698,2]
[393866403,1763049042361,-166.66,0.0002171,2]
[393866404,1763049042371,-15283.73,0.00021757,2]
[393866405,1763049042380,-23863.2,0.00021757,2]
[393866406,1763049042390,-14760.51240774,0.0002177,2]
[393866407,1763049042399,-250.0,0.00021821,2]
[393866408,1763049042408,-183.39180887,0.00021821,2]
[393866409,1763049042417,-6316.3452157,0.00021891,2]
[393866410,1763049042428,-5000.0,0.00021918,2]
[393866411,1763049042437,-1000.0,0.00021918,2]
[393866412,1763049042446,-150.97,0.00021926,2]
[393866413,1763049042455,-17137.652631,0.00021936,2]
[393866414,1763049042464,-5963.6607149,0.00021936,2]
[393866415,1763049042474,-998.0439089,0.00021936,2]
[393866416,1763049042483,-5238.5815391,0.00021936,2]
[393866417,1763049042492,-3271.273078,0.00021936,7]
[393866418,1763049042502,-3271.273078,0.00021936,7]
[393866419,1763049042512,-3271.273078,0.00021936,7]
[393866420,1763049042521,-3271.273078,0.00021936,7]
[393866421,1763049042531,-151.0,0.00021936,7]
[393866422,1763049042542,-560.706949,0.00021936,7]
[393866423,1763049042552,-560.706949,0.00021936,7]
[393866424,1763049042561,-1499.05,0.00022,7]
[393866425,1763049042570,-173.13,0.00022,2]
[393866426,1763049042580,-500.0,0.0002211,2]
[393866427,1763049042589,-350.0,0.00022368,2]
[393866428,1763049042599,-2842.89378804,0.00022468,2]
[393866429,1763049042611,-151.0,0.00022468,7]
[393866430,1763049042621,-151.0,0.00022468,7]
[393866431,1763049042630,-151.0,0.00022468,7]
[393866432,1763049042639,-9999.99,0.00022562,2]
[393866433,1763049042648,-27135.2,0.00022562,2]
[393866434,1763049042659,-150.99,0.00022562,2]
[393866435,1763049042672,-18615.47,0.00022562,2]
[393866436,1763049042682,-72874.99,0.00022562,2]
[393866437,1763049042691,-7656.68,0.00022562,2]
[393866438,1763049042701,-9999.99,0.00022562,2]
[393866439,1763049042710,-307.37,0.00022562,2]
[393866440,1763049042719,-9999.99,0.00022562,2]
[393866441,1763049042729,-9999.99,0.00022562,2]
[393866442,1763049042738,-999.99,0.00022562,2]
[393866443,1763049042747,-1517.41,0.00022562,2]
[393866444,1763049042756,-150.99,0.00022562,2]
[393866445,1763049042765,-499.99,0.00022562,2]
[393866446,1763049042775,-9999.99,0.00022562,2]
[393866447,1763049042784,-1208.86994665,0.00022603,2]
[393866448,1763049042797,-266.92178037,0.00022641,5]
[393866449,1763049042807,-518.43732855,0.0002271,2]
[393866450,1763049042816,-823.0,0.00022726,2]
[393866451,1763049042825,-247.97668773,0.00022735,2]
[393866452,1763049042835,-3292.0,0.00022855,2]
[393866453,1763049042844,-478.69779641,0.00022868,2]
[393866454,1763049042853,-1300.0,0.000229,8]
[393866455,1763049042862,-450.0,0.00022916,2]
[393866456,1763049042871,-150.0,0.00022925,2]
[393866457,1763049042880,-435.91185601,0.00023,2]
[393866458,1763049042890,-998.5774145,0.00023,2]
[393866459,1763049042899,-2562.56127671,0.000231,2]
[393866460,1763049042908,-2842.89378804,0.00023246,2]
[393866461,1763049042917,-1000.0,0.00023306,7]
[393866462,1763049042926,-151.0,0.00023368,7]
[393866463,1763049042935,-200.53431591,0.00023415,2]
[393866464,1763049042945,-208.5882415,0.00023415,2]
[393866465,1763049042954,-550.0,0.00023464,2]
[393866466,1763049042964,-1000.0,0.00023471,2]
[393866467,1763049042974,-200.0,0.000235,2]
[393866468,1763049042983,-600.0,0.00023597,2]
[393866469,1763049042992,-496.3,0.00023597,2]
[393866470,1763049043001,-2000.0,0.000237,2]
[393866471,1763049043010,-14760.51240774,0.00023756,2]
[393866472,1763049043020,-300.0,0.00023775,2]
[393866473,1763049043030,-677.68637483,0.00023775,2]
[393866474,1763049043042,-3271.273078,0.00023802,7]
[393866476,1763049043051,-3271.273078,0.00023802,7]
[393866478,1763049043060,-3271.273078,0.00023802,7]
[393866481,1763049043073,-3271.273078,0.00023802,7]
[393866483,1763049043082,-6316.3452157,0.00023845,2]
[393866485,1763049043092,-151.0,0.00023902,7]
[393866487,1763049043101,-3271.273078,0.00023902,7]
[393866489,1763049043110,-3271.273078,0.00023902,7]
[393866491,1763049043119,-3271.273078,0.00023902,7]
[393866493,1763049043129,-3271.273078,0.00023902,7]
[393866495,1763049043138,-1011.55444144,0.00024,2]
[393866496,1763049043147,-183.9540852,0.00024012,2]
[393866498,1763049043157,-2842.89378804,0.00024024,2]
[393866501,1763049043166,-2139.73,0.000242,2]
[393866503,1763049043175,-414.19538437,0.0002421,2]
[393866504,1763049043184,-150.0,0.00024268,2]
[393866506,1763049043193,-250.0,0.00024279,2]
[393866508,1763049043202,-695.16797179,0.00024332,2]
[393866510,1763049043212,-173.13,0.00024345,2]
[393866512,1763049043223,-560.706949,0.00024454,7]
[393866514,1763049043232,-560.706949,0.00024454,7]
[393866516,1763049043241,-2249.12,0.00024454,2]
[393866518,1763049043250,-157.66,0.00024512,2]
[393866520,1763049043260,-151.0,0.00024549,7]
[393866522,1763049043269,-151.0,0.00024549,7]
[393866524,1763049043278,-159.474307,0.00024549,7]
[393866526,1763049043287,-591.92719779,0.0002465,2]
[393866527,1763049043298,-169.39,0.00024658,2]
[393866528,1763049043308,-1000.0,0.00024658,2]
[393866529,1763049043317,-2528.01266796,0.000247,2]
[393866530,1763049043327,-965.8709313,0.000247,2]
[393866531,1763049043336,-375.6515216,0.000247,2]
[393866532,1763049043345,-16384.65341365,0.000247,2]
[393866533,1763049043354,-1391.4806275,0.0002474,2]
[393866534,1763049043363,-638.0,0.00024767,2]
[393866536,1763049043373,-150.97,0.0002479,2]
[393866537,1763049043382,-560.706949,0.000248,7]
[393866539,1763049043391,-560.706949,0.000248,7]
[393866541,1763049043400,-560.706958,0.000248,7]
[393866543,1763049043410,-361558.966379,0.000248,3]
[393866545,1763049043419,-151.0,0.000248,7]
[393866547,1763049043428,-151.0,0.000248,7]
[393866549,1763049043437,-2842.89378804,0.00024802,2]
[393866551,1763049043447,-784.0,0.0002481,2]
[393866552,1763049043458,-211768.82963432,0.000249,3]
[393866588,1763049046331,-138.95570581,0.000178,2]
[393866591,1763049046344,-34.87446128,0.000178,2]
[393866593,1763049046353,-158.93583,0.00018,2]
[393866595,1763049046363,-186.93414408,0.00021273,2]
[393866598,1763049046372,-151.0,0.00021499,2]
[393866600,1763049046383,-247.91756464,0.000249,3]
[393866603,1763049046398,-337.99999999,0.000249,3]
[393866608,1763049046435,-51095.43,0.000249,3]
[393867122,1763049052233,288.0,0.00040762,30]
[393867319,1763049192525,20850.25316173,0.00040762,30]
[393867343,1763049366838,-169.09487762,0.000176,2]
[393867344,1763049366861,-480.63168574,0.000176,2]
[393867345,1763049384097,-500.0,0.00017673,2]
[393867346,1763049384122,-500.0,0.00017673,2]
[393867347,1763049384146,-406.97735465,0.00017673,2]
[393867348,1763049384169,-500.0,0.00017673,2]
[393867349,1763049384194,-618.46923793,0.00017673,2]
[393867350,1763049384223,-500.0,0.00017673,2]
[393867351,1763049384248,-500.0,0.00017673,2]
[393867352,1763049384272,-500.0,0.00017673,2]
[393867353,1763049384299,-195.82684406,0.00017685,2]
[393867357,1763049425782,300.0,0.00040774,30]
[393867358,1763049426385,300.0,0.00040774,30]
[393867361,1763049473508,169.99,0.00030137,120]
[393867363,1763049512503,509.3648031,0.000161,2]
[393867364,1763049512753,505.0,0.000161,2]
[393867365,1763049513013,505.0,0.000161,2]
[393867366,1763049513271,505.0,0.000161,2]
[393867367,1763049513535,505.0,0.000161,2]
[393867372,1763049555994,2577.64,0.00040774,30]
[393867377,1763049616761,411649.51732268,0.00040774,45]
[393867379,1763049634094,-169.09487761,0.000176,2]
[393867380,1763049634122,-92.86065263,0.000176,2]
[393867381,1763049634248,-150.411,0.000176,2]
[393867382,1763049634288,-188.04618852,0.000176,2]
[393867383,1763049634396,-311.95381148,0.000176,2]
[393867384,1763049634509,-158.29381148,0.000176,2]
[393867389,1763049774364,210.52,0.00026388,120]
[393867390,1763049798384,1687.16330287,0.00040747,120]
[393867391,1763049821221,499.0,0.00040747,60]
[393867392,1763049822925,1193.91260218,0.00040747,120]
[393867393,1763049843582,150.0,0.0001747,120]
[393867394,1763049909395,-150.0,0.0001747,2]
[393867395,1763049909434,-210.52,0.00017592,2]
[393867396,1763049909473,-1200.0,0.00017599,2]
[393867397,1763049909512,-209.0,0.00017599,2]
[393867398,1763049909552,-300.0,0.00017599,2]
[393867399,1763049909593,-1200.0,0.00017599,2]
[393867400,1763049909633,-500.0,0.000176,2]
[393867401,1763049909671,-478.1451241,0.000176,2]
[393867402,1763049909711,-1000.0,0.000176,2]
[393867403,1763049909750,-4075.8433,0.000176,2]
[393867404,1763049909787,-30828.341,0.000176,2]
[393867405,1763049909828,-2500.0,0.000176,2]
[393867406,1763049909869,-234.6117,0.000176,2]
[393867407,1763049909912,-250.0,0.00017604,2]
[393867408,1763049909956,-550.0,0.00017607,2]
[393867409,1763049909999,-169.09487761,0.00017608,2]
[393867410,1763049910038,-250.0,0.00017631,2]
[393867411,1763049910076,-896.35,0.00017637,2]
[393867412,1763049910114,-3346.87,0.00017671,14]
[393867413,1763049910153,-2679.1775,0.00017671,2]
[393867414,1763049910193,-500.0,0.00017673,2]
[393867415,1763049910367,-500.0,0.00017673,2]
[393867416,1763049910406,-155.49640613,0.00017673,2]
[393867417,1763049910443,-500.0,0.00017673,2]
[393867418,1763049910484,-500.0,0.00017673,2]
[393867419,1763049910522,-502.30771968,0.00017673,2]
[393867420,1763049910561,-500.0,0.00017673,2]
[393867421,1763049910600,-313.65299721,0.00017673,2]
[393867422,1763049910638,-500.0,0.00017673,2]
[393867423,1763049910677,-500.0,0.00017673,2]
[393867424,1763049910717,-500.0,0.00017673,2]
[393867425,1763049910757,-420.55272504,0.00017673,2]
[393867426,1763049910796,-151.0,0.00017685,2]
[393867427,1763049910834,-151.0,0.00017685,2]
[393867428,1763049910880,-151.0,0.00017689,2]
[393867429,1763049910929,-151.0,0.00017689,2]
[393867430,1763049910973,-151.0,0.00017689,2]
[393867431,1763049911015,-151.0,0.00017689,2]
[393867432,1763049911054,-151.0,0.00017689,2]
[393867433,1763049911097,-151.0,0.00017689,2]
[393867434,1763049911156,-151.0,0.00017689,2]
[393867435,1763049911233,-151.0,0.00017689,2]
[393867436,1763049911311,-151.0,0.00017689,2]
[393867437,1763049911388,-151.0,0.00017689,2]
[393867438,1763049911466,-151.0,0.00017689,2]
[393867439,1763049911528,-151.0,0.00017689,2]
[393867440,1763049911609,-151.0,0.00017689,2]
[393867441,1763049911673,-151.0,0.00017689,2]
[393867442,1763049911737,-151.0,0.00017689,2]
[393867443,1763049911802,-151.0,0.00017689,2]
[393867444,1763049911865,-151.0,0.00017689,2]
[393867445,1763049911929,-151.0,0.00017689,2]
[393867446,1763049911994,-151.0,0.00017689,2]
[393867447,1763049912053,-151.0,0.00017689,2]
[393867448,1763049912111,-151.0,0.00017689,2]
[393867449,1763049912169,-151.0,0.00017689,2]
[393867450,1763049912231,-151.0,0.00017689,2]
[393867451,1763049912289,-151.0,0.00017689,2]
[393867452,1763049912348,-151.0,0.00017689,2]
[393867453,1763049912390,-151.0,0.00017689,2]
[393867454,1763049912682,-151.0,0.00017689,2]
[393867455,1763049912740,-500.0,0.00017699,2]
[393867456,1763049912782,-500.0,0.00017699,2]
[393867457,1763049912823,-193.31002887,0.00017699,2]
[393867458,1763049912863,-194.33650699,0.00017699,2]
[393867459,1763049912908,-500.0,0.00017699,2]
[393867460,1763049912952,-500.0,0.00017699,2]
[393867461,1763049913000,-500.0,0.00017699,2]
[393867462,1763049913040,-500.0,0.00017699,2]
[393867463,1763049913085,-500.0,0.00017699,2]
[393867464,1763049913132,-500.0,0.00017699,2]
[393867465,1763049913174,-521.49145163,0.00017699,2]
[393867466,1763049913220,-500.0,0.00017699,2]
[393867467,1763049913270,-500.0,0.00017699,2]
[393867468,1763049913316,-500.0,0.00017699,2]
[393867469,1763049913363,-299.38632709,0.00017699,2]
[393867470,1763049913404,-500.0,0.00017699,2]
[393867471,1763049913451,-500.0,0.00017699,2]
[393867472,1763049913493,-610.94921238,0.00017699,2]
[393867473,1763049913541,-500.0,0.00017699,2]
[393867474,1763049913581,-163.86866062,0.00017699,2]
[393867475,1763049913629,-500.0,0.00017699,2]
[393867476,1763049913676,-500.0,0.00017699,2]
[393867477,1763049913721,-500.0,0.00017699,2]
[393867478,1763049913769,-500.0,0.00017699,2]
[393867479,1763049913816,-500.0,0.00017699,2]
[393867480,1763049913863,-500.0,0.00017699,2]
[393867481,1763049913910,-500.0,0.00017699,2]
[393867482,1763049913960,-500.0,0.00017699,2]
[393867483,1763049914008,-500.0,0.00017699,2]
[393867484,1763049914055,-500.0,0.00017699,2]
[393867485,1763049914098,-500.0,0.00017699,2]
[393867486,1763049914142,-500.0,0.00017699,2]
[393867487,1763049914189,-500.0,0.00017699,2]
[393867488,1763049914237,-500.0,0.00017699,2]
[393867489,1763049914280,-500.0,0.00017699,2]
[393867490,1763049914323,-500.0,0.00017699,2]
[393867491,1763049914369,-500.0,0.00017699,2]
[393867492,1763049914412,-480.34489231,0.00017699,2]
[393867493,1763049914616,-500.0,0.00017699,2]
[393867494,1763049914663,-500.0,0.00017699,2]
[393867495,1763049914707,-500.0,0.00017699,2]
[393867496,1763049914750,-500.0,0.00017699,2]
[393867497,1763049914794,-500.0,0.00017699,2]
[393867498,1763049914838,-500.0,0.00017699,2]
[393867499,1763049914886,-500.0,0.00017699,2]
[393867500,1763049914930,-500.0,0.00017699,2]
[393867501,1763049914974,-500.0,0.00017699,2]
[393867502,1763049915019,-500.0,0.00017699,2]
[393867503,1763049915065,-600.0,0.00017699,2]
[393867504,1763049915108,-500.0,0.00017699,2]
[393867505,1763049915147,-280.54,0.00017699,2]
[393867506,1763049915186,-500.0,0.00017699,2]
[393867507,1763049915226,-420000.0,0.000177,2]
[393867508,1763049917755,500.0,0.00017673,2]
[393867509,1763049924911,500.0,0.00017573,2]
[393867510,1763049925431,3201.67399581,0.00017673,2]
[393867511,1763049928573,1000.0,0.000176,2]
[393867512,1763049935771,100919.72676364,0.00017599,2]
[393867528,1763050029233,-500.0,0.00017573,2]
[393867529,1763050029273,-500.0,0.00017573,2]
[393867530,1763050029319,-10748.78640155,0.00017573,2]
[393867531,1763050029359,-234.54991249,0.00017598,2]
[393867532,1763050029400,-421.22410878,0.00017598,2]
[393867533,1763050029443,-157.16745051,0.00017598,2]
[393867534,1763050029486,-500.0,0.00017598,2]
[393867535,1763050029532,-500.0,0.00017598,2]
[393867536,1763050029581,-500.0,0.00017598,2]
[393867537,1763050029626,-500.0,0.00017598,2]
[393867538,1763050029671,-158.03448923,0.00017598,2]
[393867539,1763050029710,-550.0,0.00017598,2]
[393867540,1763050029751,-319080.27323636,0.00017599,2]
[393867541,1763050029791,-2500.0,0.000176,2]
[393867542,1763050029833,-162.21295684,0.00017673,2]
[393867543,1763050029872,-150.13919962,0.00017673,2]
[393867544,1763050029915,-160.91718294,0.00017673,2]
[393867545,1763050029960,-304.17315594,0.00017686,2]
[393867546,1763050030137,-151.0,0.00017689,2]
[393867547,1763050030177,-151.0,0.00017689,2]
[393867548,1763050030217,-151.0,0.000177,2]
[393867549,1763050030619,151.0,0.00017689,2]
[393867550,1763050032315,151.0,0.00017689,2]
[393867551,1763050032784,258.80243225,0.000177,2]
[393867552,1763050069066,665.626646,0.00017683,2]
[393867553,1763050082944,818.3244929,0.00017655,2]
[393867555,1763050095777,1000.0,0.000176,2]
[393867556,1763050108966,152316.53269254,0.00017599,2]
[393867558,1763050232368,-2500.0,0.00017499,2]
[393867559,1763050232377,-426.6787721,0.00017544,4]
[393867560,1763050232389,-273.84430536,0.00017544,4]
[393867561,1763050232400,-516.28359951,0.00017544,4]
[393867562,1763050232411,-1247.04778467,0.00017544,4]
[393867563,1763050232423,-303.63741467,0.00017573,2]
[393867564,1763050232450,-196.36258533,0.00017573,2]
[393867565,1763050232459,-369.54119436,0.00017573,2]
[393867566,1763050232468,-500.0,0.00017573,2]
[393867567,1763050232478,-392.0,0.00017598,2]
[393867568,1763050232493,-300.0,0.00017598,2]
[393867569,1763050232503,-1200.0,0.00017598,2]
[393867570,1763050232512,-4109.89582033,0.00017599,2]
[393867571,1763050232523,-508.67861572,0.00017599,2]
[393867572,1763050232538,-13369.82578459,0.00017599,2]
[393867573,1763050232550,-652.30130565,0.00017599,2]
[393867574,1763050232561,-480.71,0.00017599,2]
[393867575,1763050232572,-345.51780687,0.00017599,2]
[393867576,1763050232583,-847.53598838,0.00017599,2]
[393867577,1763050232594,-663.0,0.00017599,2]
[393867578,1763050232606,-113163.10434783,0.00017599,2]
[393867579,1763050232625,-3122.82711397,0.00017599,2]
[393867580,1763050232637,-264.75847164,0.00017599,2]
[393867581,1763050232648,-301.0,0.00017599,2]
[393867582,1763050232659,-5850.0,0.00017599,2]
[393867583,1763050232671,-556.64674786,0.00017599,2]
[393867584,1763050232690,-518.0175,0.00017599,2]
[393867585,1763050232706,-372.51000098,0.00017599,2]
[393867646,1763050240525,-1035.3,0.00017599,2]
[393867647,1763050240547,-12046.95275724,0.00017599,2]
[393867648,1763050240559,-407.2729115,0.00017599,2]
[393867649,1763050240570,-11507.32672946,0.00017599,2]
[393867681,1763050243491,-975.04714555,0.00017599,2]
[393867682,1763050243797,-76383.92431605,0.00017599,2]
[393867955,1763050322400,377.73,9.029e-05,2]
[393867956,1763050322512,377.73,9.504e-05,2]
[393867957,1763050322586,377.73,9.979e-05,2]
[393867958,1763050322654,377.73,0.00010454,2]
[393867959,1763050322805,377.73,0.00010929,2]
[393867960,1763050323066,156.56741177,0.00011404,2]
[393867961,1763050323104,221.16258823,0.00011404,2]
[393867962,1763050323657,377.73,0.0001188,2]
[393867963,1763050323786,377.73,0.00012355,2]
[393867964,1763050324006,377.73,0.0001283,2]
[393867965,1763050324238,377.73,0.00013305,2]
[393867966,1763050324546,377.73,0.0001378,2]
[393867967,1763050324769,377.73,0.00014255,2]
[393867968,1763050324967,377.73,0.00014731,2]
[393867969,1763050325198,377.73,0.00015206,2]
[393867970,1763050325471,377.73,0.00015681,2]
[393867971,1763050325715,377.73,0.00016156,2]
[393867972,1763050325962,377.73,0.00016631,2]
[393867980,1763050795683,-377.73,0.00017107,2]
[393867981,1763050795707,-250.0,0.00017205,2]
[393867982,1763050795731,-206.26953728,0.00017398,2]
[393867983,1763050795755,-300.0,0.00017498,2]
[393867984,1763050795778,-1200.0,0.00017498,2]
[393867985,1763050795801,-550.0,0.00017498,2]
[393867986,1763050795823,-33305.0021,0.00017499,2]
[393867987,1763050795845,-1000.0,0.00017499,2]
[393867988,1763050795868,-3008.4068,0.00017555,2]
[393867989,1763050795890,-1000.0,0.00017555,2]
[393867990,1763050795914,-13527.10711555,0.00017573,2]
[393867991,1763050795938,-377.73,0.00017582,2]
[393867992,1763050795961,-500.0,0.00017598,2]
[393867993,1763050795985,-155.2406478,0.00017598,2]
[393867994,1763050796008,-1386.2051664,0.00017598,2]
[393867995,1763050796032,-20201.31394384,0.00017599,2]
[393867996,1763050796055,-2500.0,0.000176,2]
[393867997,1763050796077,-513.6229243,0.00017655,2]
[393867998,1763050796101,-13188.37176483,0.00017655,2]
[393868000,1763050840130,250.0,0.00017,2]
[393868001,1763050920771,1639.78,0.00017,2]
[393868002,1763051118217,-300.0,0.00017419,2]
[393868003,1763051118257,-1200.0,0.00017419,2]
[393868004,1763051121672,-7650.88250078,0.0001742,2]
[393868005,1763051124515,-4523.51390317,0.0001742,2]
[393868006,1763051124579,-952.98219366,0.0001742,2]
[393868007,1763051128066,-2078.96156693,0.0001742,2]
[393868008,1763051128296,-5842.08686614,0.0001742,2]
[393868009,1763051130918,-250.0,0.00017446,2]
[393868010,1763051130956,-239.78160992,0.00017472,2]
[393868011,1763051131022,-9020.44678016,0.00017473,2]
[393868012,1763051137817,-10000.01,0.00017473,2]
[393868013,1763051145451,-10000.01,0.00017473,2]
[393868014,1763051152119,60400.0,0.0001699,2]
[393868015,1763051152146,28289.98806672,0.0001699,2]
[393868016,1763051155497,-10000.01,0.00017426,2]
[393868017,1763051161648,-3533.64,0.00017426,2]
[393868018,1763051161676,-2932.73,0.00017426,2]
[393868019,1763051165080,-10000.01,0.00017473,2]
[393868020,1763051168535,-10000.01,0.00017473,2]
[393868021,1763051168564,-10000.01,0.00017473,2]
[393868022,1763051168869,-10000.01,0.00017473,2]
[393868023,1763051168892,-10000.01,0.00017473,2]
[393868024,1763051168926,-10000.01,0.00017473,2]
[393868025,1763051169056,-10000.01,0.00017473,2]
[393868026,1763051169192,-10000.01,0.00017473,2]
[393868027,1763051169332,-10000.01,0.00017473,2]
[393868028,1763051178412,-10000.01,0.00017473,2]
[393868029,1763051178841,-10000.01,0.00017473,2]
[393868030,1763051181888,-10000.01,0.00017473,2]
[393868031,1763051182105,-10000.01,0.00017473,2]
[393868032,1763051184914,-10000.01,0.00017473,2]
[393868033,1763051185074,-10000.01,0.00017473,2]
[393868034,1763051188080,-10000.01,0.00017473,2]
[393868035,1763051188198,-10000.01,0.00017473,2]
[393868041,1763051204686,511.63,0.00013699,2]
[393868042,1763051211544,2620.29272839,0.00015,14]
[393868043,1763051212747,5000.00646955,0.000162,5]
[393868164,1763051247880,356.8831616,0.000166,2]
[393868280,1763051271770,1110970.40558367,0.00017,2]
[393868288,1763051316408,92379.70080206,0.00015,3]
[393868289,1763051316438,100000.0,0.00015,3]
[393868290,1763051316465,357368.67318801,0.00015,3]
[393868291,1763051316494,31744.31727756,0.00015,3]
[393868297,1763051402144,2000.0,0.00016945,2]
[393868337,1763051431637,-1000.0,0.00017065,2]
[393868340,1763051431647,-195.0,0.0001726,2]
[393868342,1763051431658,-522.361767,0.00017455,2]